bitfinex/quotes_BTCUSD_20241226
["timestamp","ask_amount","ask_price","bid_price","bid_amount"]
[1735200544767,0.0882782,96832.0,96814.0,0.28409552]
[1735200545360,0.01259853,96831.0,96815.0,0.023]
[1735200545563,0.01159853,96831.0,96826.0,0.28409552]
[1735200546002,0.01537764,96848.0,96827.0,0.023]
[1735200546205,0.01537764,96848.0,96837.0,0.28409552]
[1735200546410,0.10398632,96847.0,96837.0,0.28409552]
[1735200546621,0.15,96849.0,96837.0,0.28409552]
[1735200547209,0.01537764,96853.0,96837.0,0.28409552]
[1735200547424,0.01537764,96853.0,96837.0,0.28425122]
[1735200547630,0.01537764,96853.0,96838.0,0.023]
[1735200547786,0.01537764,96853.0,96839.0,0.10398632]
[1735200548176,0.0882782,96857.0,96853.0,0.02799999]
[1735200548415,0.0882782,96857.0,96855.0,0.023]
[1735200548583,0.0882782,96857.0,96856.0,0.15498631]
[1735200548802,0.0882782,96869.0,96868.0,0.02799999]
[1735200548967,0.0882782,96869.0,96868.0,0.25498631]
[1735200549376,0.0882782,96869.0,96868.0,0.15498631]
[1735200549828,0.01537764,96883.0,96873.0,0.02799999]
[1735200550003,0.01537764,96883.0,96878.0,0.02799999]
[1735200550211,0.01537764,96886.0,96879.0,0.10398632]
[1735200550472,0.01537764,96886.0,96881.0,0.02799999]
[1735200550715,0.01537764,96886.0,96882.0,0.13198631]
[1735200550911,0.0882782,96910.0,96876.0,0.28409552]
[1735200550912,0.01537764,96898.0,96897.0,0.02799999]
[1735200551148,0.01537764,96898.0,96897.0,0.15498631]
[1735200551750,0.01537764,96910.0,96906.0,0.02799999]
[1735200551971,0.01537764,96910.0,96888.0,0.28409552]
[1735200551972,0.01537764,96910.0,96909.0,0.15099999]
[1735200552175,0.01537764,96910.0,96909.0,0.25601807]
[1735200552379,0.01534372,96917.0,96910.0,0.023]
[1735200552586,0.01534372,96917.0,96916.0,0.27398632]
[1735200552777,0.0882782,96932.0,96916.0,0.27398632]
[1735200552778,0.0882782,96932.0,96916.0,0.27898631]
[1735200553077,0.08879929,96932.0,96931.0,0.05099999]
[1735200553203,0.08879929,96932.0,96931.0,0.25601787]
[1735200553396,0.08879929,96932.0,96931.0,0.25498631]
[1735200553397,0.00052109,96932.0,96931.0,0.25498631]
[1735200553625,0.0882782,96954.0,96944.0,0.12799999]
[1735200553822,0.0882782,96954.0,96944.0,0.25498631]
[1735200554109,0.00032806,96945.0,96944.0,0.25498631]
[1735200554857,0.0882782,96972.0,96958.0,0.1]
[1735200555062,0.0882782,96972.0,96956.0,0.28409552]
[1735200555268,0.10398632,96965.0,96956.0,0.28409552]
[1735200555466,0.0882782,96984.0,96957.0,0.10398632]
[1735200555668,0.0882782,96984.0,96959.0,0.02799999]
[1735200555888,0.0882782,96984.0,96960.0,0.10398632]
[1735200556093,0.0882782,96962.0,96956.0,0.28409552]
[1735200556298,0.0882782,96962.0,96955.0,0.02799999]
[1735200556847,0.01245513,96961.0,96955.0,0.02799999]
[1735200557199,0.01245513,96961.0,96952.0,0.28409552]
[1735200557667,0.0001718,96966.0,96952.0,0.28409552]
[1735200557863,0.0001718,96966.0,96945.0,0.02799999]
[1735200558117,0.0010315,96965.0,96930.0,0.26169606]
[1735200558291,0.15,96960.0,96930.0,0.00015626]
[1735200558494,0.15,96958.0,96930.0,0.00015626]
[1735200558700,0.10501782,96957.0,96930.0,0.00015626]
[1735200559040,0.01541412,96947.0,96930.0,0.00015626]
[1735200559244,0.10501782,96946.0,96930.0,0.00015626]
[1735200559451,0.10398632,96945.0,96930.0,0.00015626]
[1735200559606,0.0010315,96944.0,96930.0,0.00015626]
[1735200560440,0.01245513,96943.0,96930.0,0.00015626]
[1735200560645,0.0010315,96942.0,96930.0,0.00015626]
[1735200560814,0.01348663,96942.0,96930.0,0.00015626]
[1735200561380,0.11747295,96942.0,96930.0,0.00015626]
[1735200561882,0.01245513,96941.0,96930.0,0.00015626]
[1735200562082,0.0010315,96940.0,96930.0,0.00015626]
[1735200562314,0.01348663,96940.0,96930.0,2.484e-05]
[1735200562429,0.01245513,96939.0,96930.0,2.484e-05]
[1735200562646,0.0010315,96938.0,96930.0,2.484e-05]
[1735200563150,0.01245513,96937.0,96904.0,0.1]
[1735200563354,0.00128965,96936.0,96911.0,0.10398632]
[1735200563862,0.01546349,96919.0,96911.0,0.10398632]
[1735200564301,0.00128978,96918.0,96887.0,0.0787]
[1735200564508,0.11773123,96918.0,96862.0,0.0787]
[1735200564710,0.01374491,96918.0,96900.0,0.28409552]
[1735200564889,0.01245513,96918.0,96901.0,0.10398632]
[1735200565372,0.00128988,96917.0,96900.0,0.28409552]
[1735200565572,0.01245513,96917.0,96902.0,0.10501827]
[1735200566088,0.01546301,96905.0,96902.0,0.10501827]
[1735200566291,0.01546301,96905.0,96902.0,0.10398632]
[1735200566906,0.00128981,96932.0,96902.0,0.10398632]
[1735200566907,0.01546301,96903.0,96902.0,0.10398632]
[1735200567333,0.01546301,96903.0,96902.0,0.10553928]
[1735200567537,0.01245513,96914.0,96902.0,0.10450741]
[1735200567746,0.0882782,96929.0,96902.0,0.10553924]
[1735200567747,0.00128979,96928.0,96902.0,0.10553924]
[1735200567956,0.00128979,96927.0,96903.0,0.00103183]
[1735200568159,0.00128979,96927.0,96904.0,0.10398632]
[1735200569007,0.0882782,96925.0,96904.0,0.10398632]
[1735200569209,0.0154584,96905.0,96904.0,0.10398632]
[1735200569412,0.0154584,96905.0,96904.0,0.18508632]
[1735200569619,0.0125484,96905.0,96904.0,0.28508632]
[1735200569854,0.00128974,96924.0,96904.0,0.28508632]
[1735200570089,0.00128973,96927.0,96905.0,0.1]
[1735200570291,0.00128973,96926.0,96906.0,0.10398632]
[1735200570810,0.00128979,96929.0,96906.0,0.20398632]
[1735200571423,0.01252801,96925.0,96911.0,0.1]
[1735200571627,0.01252801,96925.0,96920.0,0.28409552]
[1735200571822,0.01252801,96924.0,96921.0,0.10398632]
[1735200572172,0.01252801,96924.0,96922.0,0.1]
[1735200572368,0.01252801,96924.0,96923.0,0.22698632]
[1735200572603,0.0882782,96930.0,96923.0,0.22698632]
[1735200572604,0.01549608,96927.0,96925.0,0.165076]
[1735200572783,0.01549608,96927.0,96926.0,0.22698632]
[1735200572980,0.01549608,96927.0,96926.0,0.13198631]
[1735200573182,0.01252801,96929.0,96928.0,0.1]
[1735200573385,0.01252801,96937.0,96928.0,0.10398632]
[1735200573601,0.01252801,96937.0,96927.0,0.0811]
[1735200573602,0.01252801,96937.0,96936.0,0.1]
[1735200573820,0.01252801,96937.0,96936.0,0.10398632]
[1735200574035,0.01252801,96937.0,96934.0,0.1]
[1735200574635,0.01252801,96936.0,96934.0,0.1]
[1735200574820,0.01268413,96936.0,96935.0,0.10398632]
[1735200575025,0.01268413,96936.0,96935.0,0.20398632]
[1735200575450,0.01268413,96936.0,96935.0,0.25739725]
[1735200576077,0.01268413,96936.0,96935.0,0.20398632]
[1735200576257,0.01268413,96936.0,96935.0,0.10398632]
[1735200577985,0.00768413,96936.0,96935.0,0.20398632]
[1735200578163,0.00768413,96936.0,96935.0,0.19649407]
[1735200579507,0.00768413,96936.0,96935.0,0.09649407]
[1735200579711,0.00768413,96936.0,96935.0,0.19649407]
[1735200580264,0.00768413,96936.0,96935.0,0.24916515]
[1735200580427,0.00768413,96936.0,96935.0,0.09649407]
[1735200580631,0.00768413,96936.0,96935.0,0.19649407]
[1735200580883,0.00768413,96936.0,96935.0,0.09649407]
[1735200581090,0.00768413,96936.0,96935.0,0.19649407]
[1735200581705,0.0001714,96961.0,96960.0,0.265016]
[1735200581907,0.0001718,96966.0,96965.0,0.1]
[1735200582111,0.29843117,96999.0,96971.0,0.023]
[1735200582311,0.08910842,96975.0,96973.0,0.20398632]
[1735200582511,0.08910842,96975.0,96974.0,0.36897832]
[1735200582740,0.08910842,96975.0,96974.0,0.43237585]
[1735200583141,0.08910842,96975.0,96974.0,0.45301902]
[1735200583451,0.22106012,97035.0,96981.0,0.1]
[1735200583657,0.22106012,97035.0,96979.0,0.1]
[1735200583658,0.00146026,97029.0,97002.0,0.1]
[1735200583803,0.00146026,97029.0,96993.0,0.28340908]
[1735200584209,0.10398632,97002.0,96980.0,0.28340908]
[1735200584411,0.00128882,97001.0,96970.0,0.28340908]
[1735200584603,0.00128882,97001.0,96990.0,0.28340908]
[1735200584795,0.00128881,97016.0,96987.0,0.16497]
[1735200585088,0.0012887,97015.0,96980.0,0.28340908]
[1735200585290,0.10398632,97001.0,96967.0,0.00015623]
[1735200585492,0.00128917,97000.0,96967.0,0.00015623]
[1735200585618,0.10398632,96999.0,96967.0,0.00015623]
[1735200585826,0.00128906,96998.0,96967.0,0.00015623]
[1735200586005,0.10527548,96997.0,96967.0,0.00015623]
[1735200587420,0.3,96986.0,96967.0,0.00015623]
[1735200587650,0.15,96981.0,96967.0,0.00015623]
[1735200587858,0.3,96986.0,96967.0,0.00015623]
[1735200587859,0.15,96979.0,96967.0,0.00015623]
[1735200588062,0.15,96977.0,96930.0,0.211651]
[1735200588262,0.3,96986.0,96931.0,0.10398632]
[1735200588263,0.15,96975.0,96931.0,0.10398632]
[1735200588466,0.15,96973.0,96931.0,0.10398632]
[1735200588668,0.10527573,96972.0,96931.0,0.10398632]
[1735200589116,0.10527573,96972.0,96934.0,0.1]
[1735200589314,0.10527573,96972.0,96931.0,0.10398632]
[1735200589519,0.10527573,96972.0,96934.0,0.1]
[1735200589726,0.15,96971.0,96931.0,0.10398632]
[1735200589958,0.10527574,96970.0,96933.0,0.1]
[1735200590158,0.10527574,96970.0,96934.0,0.10398632]
[1735200590361,0.10527574,96970.0,96940.0,0.28340908]
[1735200591477,0.10527574,96970.0,96937.0,0.1]
[1735200591674,0.10527574,96970.0,96938.0,0.10398632]
[1735200592062,0.10527574,96970.0,96930.0,0.28340908]
[1735200592262,0.10527574,96970.0,96931.0,0.10398632]
[1735200592494,0.01201929,96969.0,96931.0,0.10398632]
[1735200592663,0.10527573,96968.0,96931.0,0.10398632]
[1735200592998,0.10527573,96968.0,96937.0,0.1]
[1735200593207,0.13437906,96957.0,96937.0,0.1]
[1735200593532,0.00128941,96956.0,96937.0,0.1]
[1735200593705,0.0133087,96956.0,96933.0,0.1]
[1735200593960,0.0133087,96956.0,96936.0,0.1]
[1735200594137,0.0133087,96956.0,96931.0,0.10398632]
[1735200594138,0.08970616,96949.0,96937.0,0.1]
[1735200594467,0.00128941,96948.0,96937.0,0.1]
[1735200595008,0.08970616,96943.0,96937.0,0.1]
[1735200595663,0.01201929,96942.0,96937.0,0.1]
[1735200596067,0.08970616,96941.0,96937.0,0.1]
[1735200596523,0.08970616,96941.0,96936.0,0.1]
[1735200596764,0.01201929,96940.0,96936.0,0.1]
[1735200596972,0.01201929,96940.0,96925.0,8.57e-05]
[1735200596973,0.00128943,96939.0,96925.0,8.57e-05]
[1735200597177,0.10527575,96939.0,96925.0,0.00024182]
[1735200597597,0.01201929,96938.0,96925.0,0.00024182]
[1735200597794,0.10527611,96937.0,96925.0,0.00024182]
[1735200598215,0.03063601,96936.0,96925.0,0.00024182]
[1735200598407,0.03063601,96936.0,96908.0,0.06770624]
[1735200598408,0.13437906,96927.0,96908.0,0.06770624]
[1735200598624,0.00128979,96926.0,96908.0,0.06770624]
[1735200598833,0.13437906,96927.0,96916.0,0.06770624]
[1735200599051,0.01201929,96926.0,96917.0,0.10398632]
[1735200599170,0.01201929,96926.0,96916.0,0.06770624]
[1735200599171,0.26527215,96925.0,96916.0,0.06770624]
[1735200599747,0.01201929,96924.0,96916.0,0.06770624]
[1735200600172,0.01201929,96923.0,96916.0,0.06770624]
[1735200600378,0.08987664,96920.0,96916.0,0.06770624]
[1735200600935,0.01201929,96919.0,96916.0,0.06770624]
[1735200601697,0.01201929,96918.0,96910.0,0.28340908]
[1735200601908,0.01201929,96918.0,96917.0,8.57e-05]
[1735200602287,0.009,96919.0,96917.0,8.57e-05]
[1735200602687,0.08987664,96921.0,96917.0,8.57e-05]
[1735200602948,0.1052761,96920.0,96886.0,0.01081859]
[1735200603149,0.1052761,96920.0,96866.0,0.0465]
[1735200603150,0.11697243,96920.0,96880.0,0.18420015]
[1735200603349,0.03965559,96919.0,96916.0,0.001]
[1735200603491,0.13593208,96918.0,96880.0,0.18420015]
[1735200603694,0.03229376,96904.0,96864.0,0.0771]
[1735200603981,0.3,96910.0,96860.0,0.18420015]
[1735200603982,0.03229376,96894.0,96860.0,0.18420015]
[1735200604108,0.15,96892.0,96850.0,0.38420015]
[1735200604308,0.3,96900.0,96850.0,0.38420015]
[1735200604309,0.03229376,96884.0,96850.0,0.38420015]
[1735200604550,0.15,96882.0,96850.0,0.38420015]
[1735200604769,0.10527686,96881.0,96850.0,0.2]
[1735200605039,0.10527686,96881.0,96864.0,0.001]
[1735200605280,0.08977868,96870.0,96864.0,0.001]
[1735200605474,0.00129053,96869.0,96860.0,0.001]
[1735200605649,0.00129053,96868.0,96860.0,0.001]
[1735200605874,0.10398632,96867.0,96860.0,0.001]
[1735200606011,0.00129068,96866.0,96860.0,0.001]
[1735200606227,0.00129068,96866.0,96850.0,0.20152109]
[1735200606228,0.10398632,96865.0,96850.0,0.20152109]
[1735200606423,0.0012907,96864.0,96850.0,0.20152109]
[1735200606638,0.0012907,96864.0,96850.0,0.20252109]
[1735200606639,0.10398632,96863.0,96850.0,0.20252109]
[1735200606844,0.00129072,96862.0,96850.0,0.20152109]
[1735200607043,0.10398632,96861.0,96850.0,0.20152109]
[1735200607253,0.01159489,96863.0,96850.0,0.20152109]
[1735200607254,0.01159489,96863.0,96857.0,0.06770624]
[1735200607462,0.009,96866.0,96865.0,0.06770624]
[1735200607895,0.009,96866.0,96865.0,0.23288424]
[1735200608102,0.01154863,96868.0,96867.0,0.06770624]
[1735200608517,0.11553495,96868.0,96850.0,0.20052109]
[1735200608739,0.01154863,96876.0,96850.0,0.55266897]
[1735200608942,0.00129046,96875.0,96850.0,0.55266897]
[1735200609172,0.008,96868.0,96850.0,0.20052109]
[1735200609376,0.00129065,96867.0,96850.0,0.20052109]
[1735200609595,0.00129065,96867.0,96850.0,0.26822733]
[1735200609596,0.009,96863.0,96850.0,0.26822733]
[1735200609807,0.00129065,96862.0,96850.0,0.26822733]
[1735200610030,0.00129064,96867.0,96850.0,0.20052109]
[1735200610319,0.00129057,96866.0,96850.0,0.26822733]
[1735200610519,0.089536,96862.0,96850.0,0.26822733]
[1735200610717,0.089536,96862.0,96851.0,0.06770624]
[1735200610919,0.089536,96862.0,96858.0,0.06770624]
[1735200611139,0.089536,96862.0,96859.0,0.10398632]
[1735200611361,0.089536,96862.0,96858.0,0.06770624]
[1735200611595,0.098536,96862.0,96861.0,0.06770624]
[1735200611762,0.009,96862.0,96861.0,0.34879256]
[1735200612171,0.089536,96863.0,96862.0,0.23288924]
[1735200612380,0.089536,96863.0,96862.0,0.33687556]
[1735200612577,0.17907201,96870.0,96869.0,0.23287724]
[1735200612732,0.0893828,96899.0,96894.0,0.06770624]
[1735200612956,0.0893828,96899.0,96897.0,0.06770624]
[1735200613146,0.0893828,96899.0,96889.0,0.28444164]
[1735200613352,0.0893828,96899.0,96891.0,0.06770624]
[1735200613775,0.03229376,96930.0,96892.0,0.10398632]
[1735200614003,0.009,96899.0,96895.0,0.06770624]
[1735200614184,0.0001714,96920.0,96895.0,0.06770624]
[1735200614778,0.0001714,96920.0,96898.0,0.06770624]
[1735200614988,0.10398632,96919.0,96891.0,0.00052109]
[1735200615247,0.009,96899.0,96891.0,0.00052109]
[1735200615533,0.018,96899.0,96891.0,0.00152109]
[1735200615875,0.009,96899.0,96891.0,0.00052109]
[1735200616075,0.009,96899.0,96891.0,0.00152109]
[1735200616479,0.009,96899.0,96891.0,0.00052109]
[1735200616693,0.009,96899.0,96891.0,0.00152109]
[1735200616903,0.009,96899.0,96891.0,0.00052109]
[1735200617684,0.018,96899.0,96892.0,0.10398632]
[1735200618024,0.027,96899.0,96893.0,0.165129]
[1735200618235,0.027,96899.0,96892.0,0.06770624]
[1735200618438,0.018,96899.0,96898.0,0.06770624]
[1735200618646,0.0001714,96920.0,96918.0,0.165088]
[1735200618854,0.0001714,96920.0,96919.0,0.06770624]
[1735200619066,0.0001714,96920.0,96911.0,0.165099]
[1735200619325,0.0001714,96920.0,96919.0,0.17169256]
[1735200619733,0.0001714,96920.0,96919.0,0.10398632]
[1735200620138,0.0091714,96920.0,96919.0,0.10398632]
[1735200620346,0.0091714,96920.0,96919.0,0.17169256]
[1735200620795,0.0181714,96920.0,96919.0,0.17269256]
[1735200620997,0.0181714,96920.0,96919.0,0.001]
[1735200621407,0.0131714,96920.0,96919.0,0.001]
[1735200621613,0.03276532,96920.0,96919.0,0.001]
[1735200622053,0.01959392,96920.0,96910.0,0.02020853]
[1735200622259,0.10527619,96919.0,96891.0,0.00052109]
[1735200623106,0.10527619,96919.0,96881.0,0.06770624]
[1735200623316,0.01159392,96918.0,96882.0,0.06770624]
[1735200623520,0.10527637,96917.0,96891.0,0.001]
[1735200623728,0.10527637,96917.0,96881.0,0.06770624]
[1735200623729,0.19465691,96917.0,96881.0,0.06770624]
[1735200623904,0.20625083,96917.0,96891.0,0.001]
[1735200624311,0.01159392,96916.0,96891.0,0.001]
[1735200624450,0.10527637,96915.0,96891.0,0.001]
[1735200624649,0.19465691,96915.0,96891.0,0.001]
[1735200624854,0.01159392,96914.0,96891.0,0.001]
[1735200625062,0.10527637,96913.0,96891.0,0.001]
[1735200625470,0.01159392,96912.0,96892.0,0.06770624]
[1735200625709,0.01159392,96912.0,96881.0,0.165151]
[1735200625710,0.00128999,96911.0,96900.0,0.28444164]
[1735200625920,0.00129002,96910.0,96900.0,0.28444164]
[1735200626147,0.10527634,96910.0,96900.0,0.28444164]
[1735200626371,0.10527634,96910.0,96893.0,8.57e-05]
[1735200626579,0.15,96908.0,96893.0,8.57e-05]
[1735200626819,0.10527646,96907.0,96893.0,8.57e-05]
[1735200627026,0.11687038,96907.0,96893.0,8.57e-05]
[1735200627651,0.01159392,96906.0,96893.0,8.57e-05]
[1735200627860,0.00129007,96905.0,96900.0,0.001]
[1735200628070,0.00129007,96905.0,96884.0,0.23285124]
[1735200628071,0.08938054,96905.0,96890.0,0.21352733]
[1735200628281,0.08938054,96905.0,96890.0,0.31751365]
[1735200628492,0.01159392,96904.0,96890.0,0.31751365]
[1735200629112,0.01159392,96903.0,96890.0,0.31751365]
[1735200629521,0.01159392,96902.0,96892.0,0.06770624]
[1735200629722,0.01159392,96902.0,96890.0,0.37866133]
[1735200629723,0.01159392,96902.0,96893.0,0.17169256]
[1735200629930,0.01159392,96902.0,96901.0,0.165116]
[1735200630151,0.005,96907.0,96903.0,0.165112]
[1735200630353,0.08938054,96910.0,96909.0,0.06770624]
[1735200630776,0.1010762,96910.0,96909.0,0.17169256]
[1735200631005,0.1010762,96910.0,96909.0,0.17119256]
[1735200631227,0.01169566,96910.0,96909.0,0.22522778]
[1735200632062,0.01169566,96910.0,96909.0,0.17119256]
[1735200632273,0.0001714,96920.0,96905.0,0.02079504]
[1735200632476,0.0001714,96920.0,96900.0,0.28444164]
[1735200632675,0.0122161,96919.0,96901.0,0.10398632]
[1735200632914,0.015,96910.0,96909.0,0.002]
[1735200633118,0.009,96910.0,96909.0,0.001]
[1735200633352,0.01169566,96910.0,96905.0,0.001]
[1735200633766,0.00128992,96909.0,96900.0,0.001]
[1735200633990,0.00128992,96909.0,96901.0,0.001]
[1735200634193,0.08938054,96907.0,96901.0,0.001]
[1735200634413,0.08938054,96907.0,96897.0,0.06720624]
[1735200634618,0.08938054,96907.0,96905.0,0.002]
[1735200635239,0.22384001,96908.0,96907.0,0.06720624]
[1735200635445,0.22384001,96908.0,96907.0,0.17119256]
[1735200635864,0.23568715,96908.0,96907.0,0.17119256]
[1735200636078,0.01184714,96908.0,96907.0,0.17119256]
[1735200636284,0.01184714,96908.0,96905.0,0.001]
[1735200636485,0.01184714,96908.0,96896.0,0.06720624]
[1735200636691,0.009,96907.0,96901.0,0.001]
[1735200636908,0.02084714,96907.0,96906.0,0.06720624]
[1735200637109,0.01184714,96907.0,96906.0,0.06720624]
[1735200637321,0.01184714,96907.0,96897.0,0.10398632]
[1735200637534,0.01184714,96907.0,96883.0,0.165147]
[1735200637535,0.00128988,96906.0,96883.0,0.165145]
[1735200637739,0.01184714,96907.0,96886.0,0.10398632]
[1735200637917,0.00128997,96906.0,96901.0,0.001]
[1735200638072,0.01313711,96906.0,96901.0,0.001]
[1735200638476,0.11712343,96906.0,96901.0,0.001]
[1735200638678,0.01184714,96905.0,96884.0,0.06720624]
[1735200638877,0.00129011,96904.0,96884.0,0.06720624]
[1735200639088,0.03033459,96903.0,96864.0,0.06720624]
[1735200639312,0.15,96899.0,96863.0,0.0134045]
[1735200639548,0.15,96897.0,96863.0,0.0134045]
[1735200639725,0.13561135,96896.0,96849.0,0.10037294]
[1735200639931,0.10398632,96891.0,96849.0,0.02097294]
[1735200640132,0.15,96872.0,96833.0,8.58e-05]
[1735200640336,0.15,96872.0,96838.0,0.06720624]
[1735200640337,0.15377715,96871.0,96838.0,0.06720624]
[1735200640537,0.15377715,96871.0,96833.0,8.58e-05]
[1735200640538,0.15,96869.0,96864.0,0.001]
[1735200640741,0.3,96866.0,96864.0,0.001]
[1735200640965,0.13461155,96852.0,96833.0,8.58e-05]
[1735200641167,0.10527728,96851.0,96850.0,0.001]
[1735200641517,0.11712442,96851.0,96850.0,0.001]
[1735200641961,0.44587467,96851.0,96850.0,0.001]
[1735200642189,0.44458371,96851.0,96850.0,0.001]
[1735200642513,0.44458371,96851.0,96834.0,0.0002415]
[1735200642514,0.41426463,96851.0,96834.0,0.0002415]
[1735200642797,0.00129084,96850.0,96834.0,0.0002415]
[1735200642943,0.10527716,96850.0,96834.0,0.0002415]
[1735200643139,0.10527716,96850.0,96821.0,0.165253]
[1735200643339,0.10527716,96850.0,96830.0,0.28444164]
[1735200643340,0.00015595,96850.0,96830.0,0.28444164]
[1735200643583,0.01184714,96849.0,96832.0,0.165234]
[1735200643904,0.26895224,96841.0,96833.0,0.10398632]
[1735200644242,0.26895224,96841.0,96835.0,0.330458]
[1735200644447,0.26895224,96841.0,96836.0,0.10398632]
[1735200644652,0.01184714,96840.0,96837.0,0.10398632]
[1735200645750,0.009,96841.0,96837.0,0.10398632]
[1735200645991,0.018,96841.0,96837.0,0.10398632]
[1735200646195,0.018,96841.0,96831.0,0.0803]
[1735200646196,0.009,96841.0,96831.0,0.0803]
[1735200646387,0.01184714,96840.0,96831.0,0.0803]
[1735200646727,0.01184714,96840.0,96820.0,0.19570513]
[1735200646728,0.009,96840.0,96820.0,0.19570513]
[1735200646923,0.00129074,96839.0,96820.0,0.29969145]
[1735200647054,0.01313788,96839.0,96820.0,0.19570513]
[1735200647888,0.00129074,96839.0,96820.0,0.19570513]
[1735200648143,0.08965436,96825.0,96820.0,0.19570513]
[1735200648751,0.01184714,96824.0,96820.0,0.19570513]
[1735200649385,0.1015015,96824.0,96820.0,0.19570513]
[1735200650169,0.009,96825.0,96820.0,0.19579083]
[1735200650170,0.01184714,96823.0,96820.0,0.19579083]
[1735200650752,0.02084714,96824.0,96820.0,0.19579083]
[1735200651096,0.03884714,96824.0,96820.0,0.19579083]
[1735200651233,0.027,96824.0,96820.0,0.19579083]
[1735200651581,0.018,96824.0,96820.0,0.19579083]
[1735200651800,0.009,96823.0,96820.0,0.19579083]
[1735200651966,0.02084714,96823.0,96820.0,0.19579083]
[1735200652344,0.02984714,96823.0,96820.0,0.19579083]
[1735200652572,0.018,96823.0,96820.0,0.19579083]
[1735200652777,0.009,96823.0,96820.0,0.19579083]
[1735200653991,0.02053239,96823.0,96821.0,0.26923932]
[1735200654163,0.02953239,96823.0,96822.0,0.02237233]
[1735200654371,0.018,96823.0,96822.0,0.10398632]
[1735200654792,0.009,96823.0,96822.0,0.12436237]
[1735200655172,0.08965436,96833.0,96832.0,0.165234]
[1735200655370,0.08965436,96833.0,96832.0,0.26922032]
[1735200655731,0.1,96891.0,96832.0,0.26922032]
[1735200655732,0.08965436,96849.0,96832.0,0.26922032]
[1735200655919,0.08965436,96849.0,96840.0,0.28444164]
[1735200656187,0.08965436,96849.0,96841.0,0.26920532]
[1735200656557,0.08965436,96849.0,96825.0,0.1]
[1735200656558,0.08965436,96853.0,96842.0,0.10398632]
[1735200656715,0.08965436,96853.0,96848.0,0.02050844]
[1735200656914,0.009,96849.0,96848.0,0.02050844]
[1735200657119,0.018,96849.0,96848.0,0.02050844]
[1735200657363,0.009,96849.0,96848.0,0.02050844]
[1735200658371,0.00915595,96850.0,96848.0,0.02050844]
[1735200658621,0.01815595,96850.0,96848.0,0.02050844]
[1735200658999,0.01815595,96850.0,96839.0,0.13295441]
[1735200659198,0.009,96849.0,96848.0,0.001]
[1735200659397,0.018,96849.0,96848.0,0.001]
[1735200659599,0.009,96849.0,96841.0,0.330438]
[1735200659830,0.009,96849.0,96842.0,0.10398632]
[1735200660032,0.00915595,96850.0,96848.0,0.001]
[1735200660292,0.009,96849.0,96848.0,0.02113885]
[1735200660782,0.00015595,96850.0,96842.0,0.10398632]
[1735200661038,0.009,96849.0,96848.0,0.165207]
[1735200661259,0.009,96849.0,96847.0,0.02026202]
[1735200661491,0.00129059,96848.0,96830.0,0.18444598]
[1735200662196,0.01285997,96848.0,96838.0,0.18444598]
[1735200662427,0.01156938,96848.0,96838.0,0.18444598]
[1735200662668,0.02056938,96848.0,96838.0,0.18444598]
[1735200663112,0.0001714,96849.0,96838.0,0.18444598]
[1735200663336,0.009,96848.0,96838.0,0.001]
[1735200663575,0.018,96848.0,96838.0,0.165223]
[1735200663847,0.009,96848.0,96838.0,0.165223]
[1735200664071,0.018,96848.0,96838.0,0.166223]
[1735200664528,0.018,96848.0,96846.0,0.165209]
[1735200664747,0.05631669,96854.0,96852.0,0.1652]
[1735200665012,0.05631669,96854.0,96853.0,0.10398632]
[1735200665250,0.05631669,96861.0,96854.0,0.165197]
[1735200665472,0.05631669,96861.0,96860.0,0.165186]
[1735200665701,0.05631669,96861.0,96860.0,0.26917232]
[1735200666598,0.26895224,96879.0,96860.0,0.26917232]
[1735200666599,0.13448155,96894.0,96876.0,0.0785]
[1735200666825,0.13448155,96894.0,96877.0,0.10398632]
[1735200667267,0.01159515,96893.0,96884.0,0.165144]
[1735200667500,0.00129006,96892.0,96871.0,0.165167]
[1735200667739,0.01159515,96891.0,96872.0,0.10398632]
[1735200667968,0.00129011,96890.0,96870.0,0.26915532]
[1735200668192,0.00129011,96890.0,96870.0,0.4536013]
[1735200668417,0.00129011,96890.0,96882.0,0.02076388]
[1735200668866,0.00015636,96892.0,96882.0,0.02076388]
[1735200669226,0.002,96890.0,96882.0,0.10398632]
[1735200669753,0.004,96890.0,96882.0,0.27013432]
[1735200669954,0.00015636,96892.0,96882.0,0.26913432]
[1735200670163,0.00915636,96892.0,96882.0,0.27113432]
[1735200670366,0.01115636,96892.0,96882.0,0.27113432]
[1735200670573,0.00215636,96892.0,96882.0,0.001]
[1735200670979,0.00215636,96892.0,96884.0,0.165145]
[1735200671365,0.00215636,96892.0,96880.0,0.18444598]
[1735200671366,0.00015636,96892.0,96890.0,0.165134]
[1735200671618,0.00015636,96892.0,96885.0,0.10398632]
[1735200672036,0.009,96890.0,96885.0,0.10398632]
[1735200672243,0.009,96890.0,96883.0,0.165147]
[1735200672459,0.00015636,96892.0,96884.0,0.001]
[1735200672662,0.00915636,96892.0,96890.0,0.001]
[1735200673213,0.00015636,96892.0,96880.0,0.18444598]
[1735200673417,0.008,96890.0,96883.0,0.002]
[1735200674142,0.008,96890.0,96884.0,0.165145]
[1735200674842,0.00015636,96892.0,96890.0,0.001]
[1735200675264,0.00915636,96892.0,96890.0,0.001]
[1735200675620,0.00015636,96892.0,96879.0,0.165153]
[1735200675827,0.00015636,96892.0,96885.0,0.165143]
[1735200676030,0.00915636,96892.0,96890.0,0.002]
[1735200676410,0.00015636,96892.0,96890.0,0.001]
[1735200676928,0.00915636,96892.0,96880.0,0.165152]
[1735200677128,0.00915636,96892.0,96885.0,0.165143]
[1735200677529,0.00915636,96892.0,96891.0,0.165134]
[1735200677764,0.00915636,96892.0,96879.0,0.001]
[1735200677940,0.10527646,96891.0,96856.0,0.165192]
[1735200678276,0.10527646,96891.0,96890.0,0.001]
[1735200678482,0.13558633,96891.0,96890.0,0.001]
[1735200678713,0.00129014,96891.0,96890.0,0.001]
[1735200678952,0.00129014,96891.0,96851.0,0.1]
[1735200678953,0.09277358,96892.0,96879.0,0.165153]
[1735200679162,0.00315636,96892.0,96883.0,0.021009]
[1735200679362,0.00315636,96892.0,96890.0,0.001]
[1735200679363,0.012,96891.0,96890.0,0.001]
[1735200679812,0.00015636,96892.0,96881.0,0.02028954]
[1735200679987,0.003,96891.0,96890.0,0.001]
[1735200680229,0.00429015,96891.0,96890.0,0.001]
[1735200681560,0.09885583,96892.0,96882.0,0.165149]
[1735200681764,0.009,96891.0,96890.0,0.001]
[1735200681985,0.009,96891.0,96882.0,0.330298]